[Event "*** Biggest EVER Titled Tuesday"]
[Site "Chess.com"]
[Date "2018.04.17"]
[Round "5"]
[White "Mimsychess"]
[Black "WinnerOleg"]
[Result "1-0"]
[WhiteElo "2312"]
[BlackElo "2324"]
[TimeControl "180+2"]
[EndTime "14:09:57 PDT"]
[Termination "Mimsychess won by resignation"]

1. d4 {[%clk 0:02:49]} 1... Nf6 {[%clk 0:03:00.1]} 2. c4 {[%clk 0:02:48.3]} 2...
e6 {[%clk 0:02:56.7]} 3. Nf3 {[%clk 0:02:48.5]} 3... d5 {[%clk 0:02:57.9]} 4.
Nc3 {[%clk 0:02:48.4]} 4... Be7 {[%clk 0:02:57.5]} 5. Bf4 {[%clk 0:02:48.1]}
5... O-O {[%clk 0:02:57.2]} 6. Rc1 {[%clk 0:02:48.5]} 6... c5 {[%clk 0:02:45.7]}
7. dxc5 {[%clk 0:02:45.8]} 7... dxc4 {[%clk 0:02:27]} 8. Qxd8 {[%clk 0:02:09.2]}
8... Rxd8 {[%clk 0:02:28.9]} 9. e3 {[%clk 0:02:09.9]} 9... Bxc5 {[%clk
0:02:15.6]} 10. Bxc4 {[%clk 0:02:10]} 10... b6 {[%clk 0:02:11]} 11. O-O {[%clk
0:01:54.4]} 11... Ba6 {[%clk 0:01:56.3]} 12. Bxa6 {[%clk 0:01:35.6]} 12... Nxa6
{[%clk 0:01:58.2]} 13. a3 {[%clk 0:01:34]} 13... Rac8 {[%clk 0:01:54.1]} 14. Nb5
{[%clk 0:01:28.7]} 14... Nd5 {[%clk 0:01:21.2]} 15. Nxa7 {[%clk 0:01:23.5]}
15... Nxf4 {[%clk 0:01:11]} 16. exf4 {[%clk 0:01:21.8]} 16... Ra8 {[%clk
0:01:03.7]} 17. Nc6 {[%clk 0:01:15.7]} 17... Rd6 {[%clk 0:00:27.2]} 18. Nce5
{[%clk 0:01:01.1]} 18... f6 {[%clk 0:00:28.4]} 19. Nc4 {[%clk 0:00:57.4]} 19...
Rd3 {[%clk 0:00:15.7]} 20. b4 {[%clk 0:00:46.6]} 20... Bd4 {[%clk 0:00:16.7]}
21. Rfd1 {[%clk 0:00:35.9]} 21... Rxd1+ {[%clk 0:00:08.9]} 22. Rxd1 {[%clk
0:00:37.8]} 22... b5 {[%clk 0:00:10.2]} 23. Rxd4 {[%clk 0:00:26.2]} 23... bxc4
{[%clk 0:00:12.1]} 24. Rxc4 {[%clk 0:00:27.8]} 24... Kf7 {[%clk 0:00:11.8]} 25.
g3 {[%clk 0:00:28]} 25... Kg6 {[%clk 0:00:12.7]} 26. b5 {[%clk 0:00:28.2]} 26...
Nb8 {[%clk 0:00:12.3]} 27. Rc8 {[%clk 0:00:28.1]} 27... Rxa3 {[%clk 0:00:08.7]}
28. Nh4+ {[%clk 0:00:29]} 28... Kh5 {[%clk 0:00:09.1]} 29. Rxb8 {[%clk
0:00:30.9]} 29... g5 {[%clk 0:00:10.2]} 30. fxg5 {[%clk 0:00:31.1]} 30... fxg5
{[%clk 0:00:12.1]} 31. Rh8 {[%clk 0:00:21.4]} 31... h6 {[%clk 0:00:13.3]} 32.
Kg2 {[%clk 0:00:17.2]} 32... gxh4 {[%clk 0:00:13.3]} 33. Rc8 {[%clk 0:00:16.4]}
33... hxg3 {[%clk 0:00:11.9]} 34. fxg3 {[%clk 0:00:16.7]} 34... Rb3 {[%clk
0:00:12.8]} 35. Rc5+ {[%clk 0:00:15.9]} 35... Kg6 {[%clk 0:00:13.7]} 36. h4
{[%clk 0:00:15.7]} 36... Kf6 {[%clk 0:00:09.5]} 37. Kh3 {[%clk 0:00:12.9]} 37...
Rb4 {[%clk 0:00:10.8]} 38. g4 {[%clk 0:00:13.1]} 38... Rb3+ {[%clk 0:00:11.5]}
39. Kg2 {[%clk 0:00:13.6]} 39... Kg6 {[%clk 0:00:12.9]} 40. Kf2 {[%clk
0:00:11.1]} 40... Kf6 {[%clk 0:00:13.8]} 41. g5+ {[%clk 0:00:10.4]} 41... hxg5
{[%clk 0:00:14.7]} 42. hxg5+ {[%clk 0:00:12.3]} 42... Kg6 {[%clk 0:00:16.2]} 43.
Ke2 {[%clk 0:00:13.6]} 43... Rb1 {[%clk 0:00:09.5]} 44. Kd3 {[%clk 0:00:12.3]}
44... Re1 {[%clk 0:00:02.8]} 45. Kc4 {[%clk 0:00:10.5]} 45... e5 {[%clk
0:00:03.9]} 46. b6 {[%clk 0:00:11.4]} 46... Rb1 {[%clk 0:00:03.7]} 47. Rb5
{[%clk 0:00:12.4]} 47... Rc1+ {[%clk 0:00:04.5]} 48. Kd5 {[%clk 0:00:13.5]}
48... Rc8 {[%clk 0:00:06.4]} 49. Kxe5 {[%clk 0:00:12.9]} 49... Kxg5 {[%clk
0:00:07.6]} 50. Kd6+ {[%clk 0:00:13.8]} 50... Kf4 {[%clk 0:00:07.3]} 51. b7
{[%clk 0:00:15.2]} 1-0

[Event "*** Biggest EVER Titled Tuesday"]
[Site "Chess.com"]
[Date "2018.04.17"]
[Round "5"]
[White "Sebastian"]
[Black "Wraku89"]
[Result "0-1"]
[WhiteElo "2775"]
[BlackElo "2611"]
[TimeControl "180+2"]
[EndTime "14:09:58 PDT"]
[Termination "Wraku89 won by resignation"]

1. e4 {[%clk 0:03:01.9]} 1... g6 {[%clk 0:02:57.7]} 2. d4 {[%clk 0:03:02.4]}
2... Bg7 {[%clk 0:02:58.7]} 3. Nc3 {[%clk 0:03:04.1]} 3... c6 {[%clk 0:02:59.9]}
4. f4 {[%clk 0:03:04.7]} 4... d5 {[%clk 0:03:01]} 5. e5 {[%clk 0:03:06]} 5...
Qb6 {[%clk 0:03:02.1]} 6. Na4 {[%clk 0:02:50.3]} 6... Qc7 {[%clk 0:03:01.6]} 7.
Nf3 {[%clk 0:02:39.3]} 7... Nh6 {[%clk 0:03:00.2]} 8. Be3 {[%clk 0:02:32.5]}
8... f6 {[%clk 0:02:53.7]} 9. h3 {[%clk 0:02:21.6]} 9... O-O {[%clk 0:02:42.8]}
10. Qd2 {[%clk 0:02:13.8]} 10... Nf5 {[%clk 0:02:42.4]} 11. Bf2 {[%clk
0:02:13.9]} 11... fxe5 {[%clk 0:02:43.7]} 12. dxe5 {[%clk 0:02:10]} 12... e6
{[%clk 0:02:43]} 13. Bd3 {[%clk 0:01:55.3]} 13... b6 {[%clk 0:02:36.2]} 14. Nc3
{[%clk 0:01:48]} 14... Nd7 {[%clk 0:02:21.5]} 15. O-O-O {[%clk 0:01:28.7]} 15...
Nc5 {[%clk 0:02:19.3]} 16. g4 {[%clk 0:01:20.7]} 16... Ne7 {[%clk 0:02:01.8]}
17. h4 {[%clk 0:01:21.5]} 17... Nxd3+ {[%clk 0:01:38.8]} 18. cxd3 {[%clk
0:01:23.4]} 18... c5 {[%clk 0:01:33.6]} 19. h5 {[%clk 0:01:17.5]} 19... d4
{[%clk 0:01:13.6]} 20. Ne4 {[%clk 0:01:10.6]} 20... Nd5 {[%clk 0:01:14.1]} 21.
Bg3 {[%clk 0:00:55.8]} 21... c4 {[%clk 0:01:01.6]} 22. Nxd4 {[%clk 0:00:40.2]}
22... cxd3+ {[%clk 0:01:01.5]} 23. Kb1 {[%clk 0:00:40.3]} 23... Qc4 {[%clk
0:00:54.8]} 24. Bf2 {[%clk 0:00:03.8]} 24... Nxf4 {[%clk 0:00:30.8]} 25. hxg6
{[%clk 0:00:03.8]} 25... Nxg6 {[%clk 0:00:21.1]} 26. Nf6+ {[%clk 0:00:04]} 26...
Bxf6 {[%clk 0:00:21.2]} 27. exf6 {[%clk 0:00:05.9]} 27... Rxf6 {[%clk
0:00:22.5]} 28. Be3 {[%clk 0:00:07]} 28... Bb7 {[%clk 0:00:21.2]} 29. Rhe1
{[%clk 0:00:07.2]} 29... Rd8 {[%clk 0:00:16.7]} 30. Rc1 {[%clk 0:00:07.5]} 30...
Qd5 {[%clk 0:00:11.3]} 31. Ka1 {[%clk 0:00:08]} 31... Qg2 {[%clk 0:00:05.1]} 32.
Qc3 {[%clk 0:00:07.7]} 32... Qxg4 {[%clk 0:00:04.9]} 33. Rg1 {[%clk 0:00:07.1]}
33... Qe4 {[%clk 0:00:04.9]} 34. Rce1 {[%clk 0:00:07.2]} 34... Rf7 {[%clk
0:00:04.3]} 35. Bf2 {[%clk 0:00:05.8]} 35... Qd5 {[%clk 0:00:04.5]} 36. Be3
{[%clk 0:00:06.3]} 36... Rc8 {[%clk 0:00:03.9]} 37. Qd2 {[%clk 0:00:07.1]} 37...
e5 {[%clk 0:00:03.2]} 38. Nb3 {[%clk 0:00:04]} 38... e4 {[%clk 0:00:03.6]} 39.
Nd4 {[%clk 0:00:04]} 39... Rd8 {[%clk 0:00:04.2]} 40. Qh2 {[%clk 0:00:04.6]}
40... b5 {[%clk 0:00:03.3]} 41. Rxg6+ {[%clk 0:00:03.8]} 41... hxg6 {[%clk
0:00:04.2]} 42. Rh1 {[%clk 0:00:05.5]} 42... Qh5 {[%clk 0:00:04.7]} 43. Qg2
{[%clk 0:00:06]} 43... d2 {[%clk 0:00:04.7]} 44. Bxd2 {[%clk 0:00:05.7]} 44...
Qxh1+ {[%clk 0:00:04.6]} 45. Qxh1 {[%clk 0:00:06.1]} 45... Rxd4 {[%clk
0:00:06.3]} 46. Be3 {[%clk 0:00:06.7]} 46... Rd3 {[%clk 0:00:05.2]} 47. a3
{[%clk 0:00:05.8]} 47... Rxe3 {[%clk 0:00:06]} 48. Qh6 {[%clk 0:00:06.8]} 48...
Re1+ {[%clk 0:00:04.6]} 49. Ka2 {[%clk 0:00:08.1]} 49... Bd5+ {[%clk 0:00:05.7]}
0-1

[Event "*** Biggest EVER Titled Tuesday"]
[Site "Chess.com"]
[Date "2018.04.17"]
[Round "5"]
[White "colemman"]
[Black "hilary444"]
[Result "1-0"]
[WhiteElo "2508"]
[BlackElo "2515"]
[TimeControl "180+2"]
[EndTime "14:10:03 PDT"]
[Termination "colemman won by resignation"]

1. d4 {[%clk 0:03:01.9]} 1... d5 {[%clk 0:02:58.8]} 2. Nf3 {[%clk 0:03:03.2]}
2... Nf6 {[%clk 0:02:59.2]} 3. Nbd2 {[%clk 0:03:04.7]} 3... Bf5 {[%clk
0:02:55.1]} 4. c3 {[%clk 0:03:05.7]} 4... e6 {[%clk 0:02:54.3]} 5. Qb3 {[%clk
0:03:06.9]} 5... b6 {[%clk 0:02:47.6]} 6. Nh4 {[%clk 0:03:08.2]} 6... Bg4 {[%clk
0:02:47]} 7. h3 {[%clk 0:03:08.8]} 7... Bh5 {[%clk 0:02:48.2]} 8. g4 {[%clk
0:03:10]} 8... Nfd7 {[%clk 0:02:47.1]} 9. Ndf3 {[%clk 0:03:02.9]} 9... Bg6
{[%clk 0:02:46.9]} 10. Nxg6 {[%clk 0:03:02.3]} 10... hxg6 {[%clk 0:02:48.8]} 11.
Bg2 {[%clk 0:03:02.5]} 11... c5 {[%clk 0:02:46]} 12. Bf4 {[%clk 0:03:01.7]}
12... Nc6 {[%clk 0:02:44.9]} 13. e3 {[%clk 0:03:02.7]} 13... Be7 {[%clk
0:02:37.9]} 14. O-O {[%clk 0:03:02.4]} 14... Nf6 {[%clk 0:02:30.1]} 15. Ne5
{[%clk 0:02:24.3]} 15... Nxe5 {[%clk 0:02:24.5]} 16. dxe5 {[%clk 0:02:24.4]}
16... Nd7 {[%clk 0:02:22.9]} 17. c4 {[%clk 0:02:25.3]} 17... dxc4 {[%clk
0:01:26.9]} 18. Qa4 {[%clk 0:02:09.1]} 18... Rc8 {[%clk 0:01:21]} 19. Rad1
{[%clk 0:02:05.3]} 19... Qc7 {[%clk 0:01:19.2]} 20. Rd2 {[%clk 0:01:39.3]} 20...
a6 {[%clk 0:01:19.2]} 21. Rfd1 {[%clk 0:01:39.3]} 21... b5 {[%clk 0:01:19.6]}
22. Qxa6 {[%clk 0:01:36.9]} 22... Nb6 {[%clk 0:01:14.2]} 23. Qxb5+ {[%clk
0:01:33.7]} 23... Kf8 {[%clk 0:01:15.4]} 24. a4 {[%clk 0:01:19.6]} 24... g5
{[%clk 0:01:13.5]} 25. Bg3 {[%clk 0:01:16]} 25... g6 {[%clk 0:01:14.6]} 26. a5
{[%clk 0:01:16.1]} 26... Nd5 {[%clk 0:01:14.5]} 27. Bxd5 {[%clk 0:01:04.7]}
27... exd5 {[%clk 0:01:16.4]} 28. Rxd5 {[%clk 0:01:04.9]} 28... Qc6 {[%clk
0:01:11.9]} 29. Qxc4 {[%clk 0:00:43.9]} 29... Rxh3 {[%clk 0:01:09.2]} 30. b4
{[%clk 0:00:44.3]} 30... cxb4 {[%clk 0:01:06.5]} 31. Qxc6 {[%clk 0:00:21.4]}
31... Rxc6 {[%clk 0:01:08.4]} 32. Rb5 {[%clk 0:00:21.2]} 32... Rh8 {[%clk
0:00:34.5]} 33. Rd7 {[%clk 0:00:21.3]} 33... Re6 {[%clk 0:00:30]} 34. Rbb7
{[%clk 0:00:20.1]} 34... b3 {[%clk 0:00:11.1]} 35. a6 {[%clk 0:00:09.1]} 35...
Rxa6 {[%clk 0:00:07.7]} 36. Rxe7 {[%clk 0:00:09]} 36... b2 {[%clk 0:00:07.6]}
37. Rxf7+ {[%clk 0:00:09.3]} 37... Ke8 {[%clk 0:00:06.4]} 38. Rfc7 {[%clk
0:00:09.3]} 38... Ra1+ {[%clk 0:00:06]} 39. Kg2 {[%clk 0:00:10.2]} 39... Kd8
{[%clk 0:00:05.9]} 40. Rd7+ {[%clk 0:00:08.6]} 40... Ke8 {[%clk 0:00:05.5]} 41.
Re7+ {[%clk 0:00:07.9]} 41... Kd8 {[%clk 0:00:03.9]} 42. Red7+ {[%clk 0:00:09]}
42... Ke8 {[%clk 0:00:04.7]} 43. Rdc7 {[%clk 0:00:05.6]} 43... Kd8 {[%clk
0:00:05.8]} 44. e6 {[%clk 0:00:05.7]} 44... b1=Q {[%clk 0:00:06]} 45. e7+ {[%clk
0:00:07.1]} 45... Ke8 {[%clk 0:00:06.5]} 46. Rxb1 {[%clk 0:00:08.5]} 46... Rxb1
{[%clk 0:00:07]} 47. Rc8+ {[%clk 0:00:10]} 47... Kxe7 {[%clk 0:00:08.3]} 48.
Rxh8 {[%clk 0:00:11.8]} 48... Kf7 {[%clk 0:00:07.3]} 49. Rb8 {[%clk 0:00:12.8]}
49... Rd1 {[%clk 0:00:06.9]} 50. Rb6 {[%clk 0:00:14]} 50... Rd2 {[%clk
0:00:06.1]} 51. Kf3 {[%clk 0:00:15.2]} 51... Ra2 {[%clk 0:00:05.8]} 52. Be5
{[%clk 0:00:16.2]} 52... Ra4 {[%clk 0:00:05.9]} 53. Bd4 {[%clk 0:00:17.6]} 1-0

[Event "*** Biggest EVER Titled Tuesday"]
[Site "Chess.com"]
[Date "2018.04.17"]
[Round "5"]
[White "Bigfish1995"]
[Black "gmjlh"]
[Result "1-0"]
[WhiteElo "2769"]
[BlackElo "2561"]
[TimeControl "180+2"]
[EndTime "14:10:04 PDT"]
[Termination "Bigfish1995 won by checkmate"]

1. d4 {[%clk 0:02:55.7]} 1... d5 {[%clk 0:03:00.6]} 2. c4 {[%clk 0:02:56.6]}
2... e6 {[%clk 0:03:01.2]} 3. Nf3 {[%clk 0:02:58.2]} 3... Nf6 {[%clk 0:03:02]}
4. g3 {[%clk 0:02:59.2]} 4... Be7 {[%clk 0:03:02.6]} 5. Bg2 {[%clk 0:03:00.2]}
5... O-O {[%clk 0:03:02.9]} 6. O-O {[%clk 0:03:01.7]} 6... dxc4 {[%clk
0:03:00.5]} 7. Qc2 {[%clk 0:03:02.6]} 7... a6 {[%clk 0:03:01]} 8. a4 {[%clk
0:03:02.6]} 8... Bd7 {[%clk 0:03:00.3]} 9. Qxc4 {[%clk 0:03:02.9]} 9... Bc6
{[%clk 0:03:00.6]} 10. Nc3 {[%clk 0:03:02.6]} 10... a5 {[%clk 0:02:47.5]} 11.
Re1 {[%clk 0:02:56.1]} 11... Ne4 {[%clk 0:02:44.8]} 12. Qd3 {[%clk 0:02:50.3]}
12... Nxc3 {[%clk 0:02:15.6]} 13. bxc3 {[%clk 0:02:51.1]} 13... Na6 {[%clk
0:02:17.1]} 14. Qc2 {[%clk 0:02:48.2]} 14... f5 {[%clk 0:01:57]} 15. Ba3 {[%clk
0:02:16]} 15... Bxa3 {[%clk 0:01:54.5]} 16. Rxa3 {[%clk 0:02:16.7]} 16... Be4
{[%clk 0:01:55.3]} 17. Qb3 {[%clk 0:02:12.4]} 17... Qd5 {[%clk 0:01:55.4]} 18.
Nh4 {[%clk 0:01:52.9]} 18... c5 {[%clk 0:01:42.7]} 19. Qxd5 {[%clk 0:01:41.7]}
19... Bxd5 {[%clk 0:01:41.4]} 20. Bxd5 {[%clk 0:01:42.3]} 20... exd5 {[%clk
0:01:42.1]} 21. e3 {[%clk 0:01:43.2]} 21... f4 {[%clk 0:01:09.2]} 22. gxf4
{[%clk 0:01:33.2]} 22... cxd4 {[%clk 0:01:08.6]} 23. cxd4 {[%clk 0:01:34.5]}
23... Nb4 {[%clk 0:01:08.5]} 24. Rc1 {[%clk 0:01:26.7]} 24... Rfc8 {[%clk
0:01:08.8]} 25. Rxc8+ {[%clk 0:01:23.7]} 25... Rxc8 {[%clk 0:01:10.7]} 26. Nf5
{[%clk 0:01:23.5]} 26... Kf8 {[%clk 0:01:08.2]} 27. Nd6 {[%clk 0:01:23.5]} 27...
Rc1+ {[%clk 0:00:59.1]} 28. Kg2 {[%clk 0:01:24]} 28... b6 {[%clk 0:00:58.7]} 29.
Nb5 {[%clk 0:01:23.9]} 29... Rc4 {[%clk 0:00:49.8]} 30. Rc3 {[%clk 0:01:16.7]}
30... Na2 {[%clk 0:00:50.2]} 31. Rxc4 {[%clk 0:01:12.2]} 31... dxc4 {[%clk
0:00:51]} 32. Kf3 {[%clk 0:01:13.4]} 32... c3 {[%clk 0:00:52.1]} 33. Na3 {[%clk
0:01:14]} 33... Nb4 {[%clk 0:00:45.5]} 34. Ke2 {[%clk 0:01:14.7]} 34... Ke7
{[%clk 0:00:40.9]} 35. f3 {[%clk 0:01:10.6]} 35... Kd7 {[%clk 0:00:37.7]} 36.
Nb5 {[%clk 0:01:03.6]} 36... Nd5 {[%clk 0:00:21.9]} 37. Na3 {[%clk 0:00:58.2]}
37... Nb4 {[%clk 0:00:21.9]} 38. e4 {[%clk 0:00:57.7]} 38... Kc6 {[%clk
0:00:13.9]} 39. f5 {[%clk 0:00:55.4]} 39... Kd7 {[%clk 0:00:14.2]} 40. h4 {[%clk
0:00:46.5]} 40... h5 {[%clk 0:00:14.2]} 41. Ke3 {[%clk 0:00:42]} 41... Kc6
{[%clk 0:00:09.4]} 42. Ke2 {[%clk 0:00:30.8]} 42... Kd7 {[%clk 0:00:10.6]} 43.
d5 {[%clk 0:00:24.5]} 43... Kd8 {[%clk 0:00:10.4]} 44. Nc4 {[%clk 0:00:20]}
44... Kc7 {[%clk 0:00:10.5]} 45. Ne3 {[%clk 0:00:18.4]} 45... Kd6 {[%clk
0:00:07.7]} 46. f4 {[%clk 0:00:18.9]} 46... Kc5 {[%clk 0:00:07.9]} 47. e5 {[%clk
0:00:20.1]} 47... b5 {[%clk 0:00:07.1]} 48. e6 {[%clk 0:00:18.1]} 48... Kd6
{[%clk 0:00:07.5]} 49. axb5 {[%clk 0:00:18.9]} 49... a4 {[%clk 0:00:08.4]} 50.
Nc4+ {[%clk 0:00:19.6]} 50... Ke7 {[%clk 0:00:07.4]} 51. d6+ {[%clk 0:00:20.1]}
51... Ke8 {[%clk 0:00:08.6]} 52. b6 {[%clk 0:00:19.9]} 52... a3 {[%clk
0:00:09.1]} 53. Nxa3 {[%clk 0:00:19.6]} 53... Nd5 {[%clk 0:00:10.1]} 54. b7
{[%clk 0:00:20.2]} 54... Ne7 {[%clk 0:00:11.5]} 55. b8=Q+ {[%clk 0:00:20.5]}
55... Nc8 {[%clk 0:00:13.4]} 56. Qxc8# {[%clk 0:00:21.7]} 1-0

[Event "*** Biggest EVER Titled Tuesday"]
[Site "Chess.com"]
[Date "2018.04.17"]
[Round "5"]
[White "murmah2003"]
[Black "AlexTriapishko"]
[Result "0-1"]
[WhiteElo "2541"]
[BlackElo "2696"]
[TimeControl "180+2"]
[EndTime "14:10:04 PDT"]
[Termination "AlexTriapishko won on time"]

1. d4 {[%clk 0:03:01.9]} 1... Nf6 {[%clk 0:02:59.5]} 2. c4 {[%clk 0:03:00.7]}
2... g6 {[%clk 0:03:00.8]} 3. Nc3 {[%clk 0:03:00.5]} 3... Bg7 {[%clk 0:03:02.7]}
4. e4 {[%clk 0:02:58.8]} 4... d6 {[%clk 0:03:04]} 5. Nf3 {[%clk 0:03:00]} 5...
O-O {[%clk 0:03:05.1]} 6. Be2 {[%clk 0:03:01.5]} 6... e5 {[%clk 0:03:06.4]} 7.
Be3 {[%clk 0:03:02.1]} 7... exd4 {[%clk 0:03:02.2]} 8. Nxd4 {[%clk 0:03:02.6]}
8... Re8 {[%clk 0:03:03.3]} 9. f3 {[%clk 0:03:03.8]} 9... c6 {[%clk 0:03:04.1]}
10. Qd2 {[%clk 0:03:05.1]} 10... d5 {[%clk 0:03:04.2]} 11. exd5 {[%clk 0:03:07]}
11... cxd5 {[%clk 0:03:04.2]} 12. O-O {[%clk 0:03:08]} 12... Nc6 {[%clk
0:02:57.7]} 13. Rad1 {[%clk 0:03:06.8]} 13... Nxd4 {[%clk 0:02:50.4]} 14. Bxd4
{[%clk 0:03:05.2]} 14... dxc4 {[%clk 0:02:48.2]} 15. Bxc4 {[%clk 0:03:03.7]}
15... Be6 {[%clk 0:02:49]} 16. Bxe6 {[%clk 0:02:19.4]} 16... Rxe6 {[%clk
0:02:47.4]} 17. Bf2 {[%clk 0:02:14.1]} 17... Qe7 {[%clk 0:02:41.4]} 18. Rfe1
{[%clk 0:02:09]} 18... a6 {[%clk 0:02:29.7]} 19. Rxe6 {[%clk 0:01:58.7]} 19...
Qxe6 {[%clk 0:02:31.5]} 20. Qd6 {[%clk 0:01:25.9]} 20... Rc8 {[%clk 0:02:12.7]}
21. Qxe6 {[%clk 0:01:22.7]} 21... fxe6 {[%clk 0:02:14.1]} 22. Bd4 {[%clk
0:01:12.4]} 22... Rc7 {[%clk 0:02:05.3]} 23. Be5 {[%clk 0:01:00.7]} 23... Rd7
{[%clk 0:01:53.7]} 24. Bxf6 {[%clk 0:00:52.5]} 24... Rxd1+ {[%clk 0:01:54.1]}
25. Nxd1 {[%clk 0:00:54.4]} 25... Bxf6 {[%clk 0:01:55.9]} 26. Kf2 {[%clk
0:00:52]} 26... Bd4+ {[%clk 0:01:52.8]} 27. Ke2 {[%clk 0:00:52.5]} 27... Kf7
{[%clk 0:01:53.2]} 28. Kd3 {[%clk 0:00:52.3]} 28... Bg1 {[%clk 0:01:53.2]} 29.
h3 {[%clk 0:00:52.4]} 29... Kf6 {[%clk 0:01:52.5]} 30. Ke4 {[%clk 0:00:49.5]}
30... Kg5 {[%clk 0:01:39.1]} 31. Nc3 {[%clk 0:00:43.7]} 31... Bh2 {[%clk
0:01:35.7]} 32. Ne2 {[%clk 0:00:25.2]} 32... Bd6 {[%clk 0:01:34.8]} 33. g3
{[%clk 0:00:17.3]} 33... Kf6 {[%clk 0:01:26.9]} 34. b3 {[%clk 0:00:17.1]} 34...
h5 {[%clk 0:01:16]} 35. h4 {[%clk 0:00:08.2]} 35... Bb4 {[%clk 0:01:10]} 36. Nf4
{[%clk 0:00:03.4]} 36... Be1 {[%clk 0:01:06.9]} 37. Ne2 {[%clk 0:00:04.9]} 37...
e5 {[%clk 0:00:45.8]} 38. a4 {[%clk 0:00:05.4]} 38... a5 {[%clk 0:00:36.8]} 39.
f4 {[%clk 0:00:06.3]} 39... exf4 {[%clk 0:00:36.8]} 40. Kxf4 {[%clk 0:00:08.2]}
40... b6 {[%clk 0:00:31.8]} 41. Ke4 {[%clk 0:00:07.2]} 41... Bf2 {[%clk
0:00:30.8]} 42. Kf3 {[%clk 0:00:06.4]} 42... Be1 {[%clk 0:00:31.3]} 43. Nf4
{[%clk 0:00:04]} 43... Bd2 {[%clk 0:00:20]} 44. Nd5+ {[%clk 0:00:04.7]} 44...
Ke5 {[%clk 0:00:21.4]} 45. Nxb6 {[%clk 0:00:06.3]} 45... Kd4 {[%clk 0:00:22.9]}
46. Nc4 {[%clk 0:00:05.2]} 46... Bb4 {[%clk 0:00:23.6]} 0-1